bitfinex/quotes_BTCUSD_20230831
["timestamp","ask_amount","ask_price","bid_price","bid_amount"]
[1693489537486,0.0208,27217.0,27216.0,0.11500879]
[1693489538497,0.0208,27217.0,27215.0,0.3]
[1693489538728,0.16153188,27216.0,27208.0,0.03124111]
[1693489538923,0.45541188,27216.0,27209.0,0.36768085]
[1693489539125,0.0759,27212.0,27209.0,0.36768085]
[1693489539325,0.08563188,27211.0,27209.0,0.36768085]
[1693489539523,0.14917188,27211.0,27210.0,0.03676809]
[1693489539799,0.183,27214.0,27210.0,0.03676809]
[1693489539999,0.0828,27213.0,27210.0,0.03676809]
[1693489540223,0.08232,27213.0,27210.0,0.31334491]
[1693489540426,0.078,27213.0,27210.0,0.31334491]
[1693489540626,0.4823,27215.0,27210.0,0.27657682]
[1693489540627,0.09936,27214.0,27210.0,0.27657682]
[1693489540805,0.07044,27212.0,27210.0,0.27657682]
[1693489541004,0.10056,27214.0,27210.0,0.27657682]
[1693489541203,0.10104,27214.0,27210.0,0.31157682]
[1693489541405,0.10344,27214.0,27210.0,0.035]
[1693489541633,0.1029,27214.0,27210.0,0.035]
[1693489541788,0.1821,27214.0,27210.0,0.035]
[1693489541993,0.09174,27213.0,27211.0,0.05497719]
[1693489542227,0.001,27211.0,27209.0,0.037]
[1693489542450,0.001,27211.0,27210.0,0.037]
[1693489542652,0.08356,27211.0,27210.0,0.037]
[1693489542849,0.08292,27211.0,27210.0,0.037]
[1693489543080,0.08382,27211.0,27210.0,0.037]
[1693489543321,0.17112,27211.0,27210.0,0.0707]
[1693489543580,0.17322,27211.0,27210.0,0.0707]
[1693489543834,0.17076,27211.0,27210.0,0.037]
[1693489544095,0.17076,27211.0,27210.0,0.074]
[1693489544096,0.16546,27211.0,27210.0,0.074]
[1693489544508,0.08878,27211.0,27210.0,0.037]
[1693489544754,0.18232,27211.0,27210.0,0.037]
[1693489545019,0.74326085,27211.0,27210.0,0.06]
[1693489545259,0.73378085,27211.0,27210.0,0.037]
[1693489545460,0.74026085,27211.0,27210.0,0.037]
[1693489545717,0.75382085,27211.0,27210.0,0.074]
[1693489545956,0.75382085,27211.0,27210.0,0.037]
[1693489546205,0.80514085,27211.0,27210.0,0.037]
[1693489546448,0.79106085,27211.0,27210.0,0.023]
[1693489546697,0.79574085,27211.0,27210.0,0.023]
[1693489546956,0.79062085,27211.0,27210.0,0.06]
[1693489547197,0.79014085,27211.0,27210.0,0.06]
[1693489547449,0.83594085,27211.0,27210.0,0.023]
[1693489547673,0.83850085,27211.0,27210.0,0.043]
[1693489547932,0.91554085,27211.0,27210.0,0.043]
[1693489548137,1.10580085,27211.0,27210.0,0.043]
[1693489548391,1.10202085,27211.0,27210.0,0.043]
[1693489548634,1.10112085,27211.0,27210.0,0.043]
[1693489548788,0.88386085,27211.0,27210.0,0.043]
[1693489548973,0.87450085,27211.0,27210.0,0.043]
[1693489549189,0.87182085,27211.0,27210.0,0.023]
[1693489549392,0.86458085,27211.0,27210.0,0.002]
[1693489549632,0.86386085,27211.0,27210.0,0.002]
[1693489549809,1.10982085,27211.0,27210.0,0.003]
[1693489550015,1.24422085,27211.0,27210.0,0.001]
[1693489550212,1.21086085,27211.0,27210.0,0.001]
[1693489550422,1.22990085,27211.0,27210.0,0.003]
[1693489550662,1.23998085,27211.0,27210.0,0.003]
[1693489550869,1.24214085,27211.0,27210.0,0.003]
[1693489551081,1.23590085,27211.0,27210.0,0.003]
[1693489551427,1.24694085,27211.0,27210.0,0.003]
[1693489551606,1.23398085,27211.0,27210.0,0.003]
[1693489551805,1.23350085,27211.0,27210.0,0.003]
[1693489552071,1.23446085,27211.0,27210.0,0.003]
[1693489552273,1.23890085,27211.0,27210.0,0.003]
[1693489552478,1.23350085,27211.0,27210.0,0.003]
[1693489552659,1.23374085,27211.0,27210.0,0.003]
[1693489552853,1.23350085,27211.0,27210.0,0.003]
[1693489553071,1.23422085,27211.0,27210.0,0.003]
[1693489553281,1.23302085,27211.0,27210.0,0.003]
[1693489553483,1.24250085,27211.0,27210.0,0.003]
[1693489553685,1.24298085,27211.0,27210.0,0.003]
[1693489553888,1.23158085,27211.0,27210.0,0.003]
[1693489554094,1.22954085,27211.0,27210.0,0.003]
[1693489554304,1.21730085,27211.0,27210.0,0.003]
[1693489554504,1.24574085,27211.0,27210.0,0.003]
[1693489554703,1.25330085,27211.0,27210.0,0.003]
[1693489554885,1.26014085,27211.0,27210.0,0.003]
[1693489555085,1.26158085,27211.0,27210.0,0.003]
[1693489555286,1.26134085,27211.0,27210.0,0.003]
[1693489555463,1.26326085,27211.0,27210.0,0.003]
[1693489555672,1.4055653,27211.0,27210.0,0.003]
[1693489555898,1.4092853,27211.0,27210.0,0.003]
[1693489556075,1.4118053,27211.0,27210.0,0.003]
[1693489556271,1.4115653,27211.0,27210.0,0.003]
[1693489556470,1.4088053,27211.0,27210.0,0.003]
[1693489556673,1.3989653,27211.0,27210.0,0.003]
[1693489556878,1.3893653,27211.0,27210.0,0.003]
[1693489557056,1.4089253,27211.0,27210.0,0.003]
[1693489557253,1.4049653,27211.0,27210.0,0.003]
[1693489557457,1.4037653,27211.0,27210.0,0.003]
[1693489557706,1.4026853,27211.0,27210.0,0.003]
[1693489557909,1.4046053,27211.0,27210.0,0.003]
[1693489558242,1.4096453,27211.0,27210.0,0.003]
[1693489558368,1.40575155,27211.0,27210.0,0.003]
[1693489558563,1.40623155,27211.0,27210.0,0.003]
[1693489558783,1.40515155,27211.0,27210.0,0.003]
[1693489559183,1.40539155,27211.0,27210.0,0.003]
[1693489559391,1.40059155,27211.0,27210.0,0.003]
[1693489559646,1.38379155,27211.0,27210.0,0.003]
[1693489559842,1.37863155,27211.0,27210.0,0.003]
[1693489560074,1.36687155,27211.0,27210.0,0.003]
[1693489560277,0.9136707,27211.0,27210.0,0.003]
[1693489560552,0.7279107,27211.0,27210.0,0.003]
[1693489560752,0.8026707,27211.0,27210.0,0.003]
[1693489560975,0.9385107,27211.0,27210.0,0.003]
[1693489561188,1.34027155,27211.0,27210.0,0.003]
[1693489561399,1.40611155,27211.0,27210.0,0.003]
[1693489561599,1.39987155,27211.0,27210.0,0.003]
[1693489561800,1.39615155,27211.0,27210.0,0.003]
[1693489561980,1.39435155,27211.0,27210.0,0.003]
[1693489562183,1.39123155,27211.0,27210.0,0.003]
[1693489562390,1.36051155,27211.0,27210.0,0.003]
[1693489562610,1.36063155,27211.0,27210.0,0.003]
[1693489562811,1.37215155,27211.0,27210.0,0.003]
[1693489563046,1.37143155,27211.0,27210.0,0.003]
[1693489563231,1.37083155,27211.0,27210.0,0.003]
[1693489563365,1.36651155,27211.0,27210.0,0.003]
[1693489563579,1.36615155,27211.0,27210.0,0.003]
[1693489563803,1.29715155,27211.0,27210.0,0.003]
[1693489564004,1.12878068,27211.0,27210.0,0.003]
[1693489564209,0.75352998,27211.0,27210.0,0.003]
[1693489564463,0.74494998,27211.0,27210.0,0.003]
[1693489564672,0.74512998,27211.0,27210.0,0.003]
[1693489564874,0.74680998,27211.0,27210.0,0.003]
[1693489564997,0.59162998,27211.0,27210.0,0.003]
[1693489565197,0.59102998,27211.0,27210.0,0.003]
[1693489565454,0.59552998,27211.0,27210.0,0.003]
[1693489565654,0.59612998,27211.0,27210.0,0.003]
[1693489565859,0.59336998,27211.0,27210.0,0.003]
[1693489566067,0.21812913,27211.0,27210.0,0.003]
[1693489566243,0.05120913,27211.0,27210.0,0.003]
[1693489566417,0.05120913,27211.0,27210.0,0.28573477]
[1693489566618,0.05120913,27211.0,27210.0,0.31430825]
[1693489567248,0.11714913,27211.0,27210.0,0.31430825]
[1693489567455,0.11810913,27211.0,27210.0,0.31430825]
[1693489567731,0.05120913,27211.0,27210.0,0.31430825]
[1693489567875,0.14240913,27211.0,27210.0,0.03157348]
[1693489568086,0.14840913,27211.0,27210.0,0.003]
[1693489568293,0.79370998,27211.0,27210.0,0.003]
[1693489568523,0.80102998,27211.0,27210.0,0.003]
[1693489568746,0.78770998,27211.0,27210.0,0.003]
[1693489569068,0.81790998,27211.0,27210.0,0.003]
[1693489569274,0.82774998,27211.0,27210.0,0.003]
[1693489569412,0.82894998,27211.0,27210.0,0.003]
[1693489569647,0.82246998,27211.0,27210.0,0.003]
[1693489569819,0.94402946,27211.0,27210.0,0.003]
[1693489570028,0.81454998,27211.0,27210.0,0.003]
[1693489570275,0.82222998,27211.0,27210.0,0.003]
[1693489570523,0.84382998,27211.0,27210.0,0.003]
[1693489570735,1.27742145,27211.0,27210.0,0.003]
[1693489570926,1.07924145,27211.0,27210.0,0.003]
[1693489571120,1.28858145,27211.0,27210.0,0.003]
[1693489571315,1.28786145,27211.0,27210.0,0.003]
[1693489571516,1.29146145,27211.0,27210.0,0.003]
[1693489571843,1.27508145,27211.0,27210.0,0.003]
[1693489572044,1.27580145,27211.0,27210.0,0.003]
[1693489572196,1.27418145,27211.0,27210.0,0.003]
[1693489572396,1.27346145,27211.0,27210.0,0.003]
[1693489572642,1.27112145,27211.0,27210.0,0.003]
[1693489572886,1.07924145,27211.0,27210.0,0.003]
[1693489573093,1.07840145,27211.0,27210.0,0.003]
[1693489573308,1.28066145,27211.0,27210.0,0.003]
[1693489573555,1.33328145,27211.0,27210.0,0.003]
[1693489573780,1.33526145,27211.0,27210.0,0.003]
[1693489573988,1.33094145,27211.0,27210.0,0.003]
[1693489574206,1.33220145,27211.0,27210.0,0.003]
[1693489574417,1.33148145,27211.0,27210.0,0.003]
[1693489574882,1.33076145,27211.0,27210.0,0.003]
[1693489575063,1.32950145,27211.0,27210.0,0.003]
[1693489575310,1.32878145,27211.0,27210.0,0.003]
[1693489575514,1.32860145,27211.0,27210.0,0.003]
[1693489575730,1.14068145,27211.0,27210.0,0.003]
[1693489575937,1.14056145,27211.0,27210.0,0.003]
[1693489576175,1.34012145,27211.0,27210.0,0.003]
[1693489576384,1.14092145,27211.0,27210.0,0.003]
[1693489576592,1.32698145,27211.0,27210.0,0.003]
[1693489576778,1.32788145,27211.0,27210.0,0.003]
[1693489576981,1.33472145,27211.0,27210.0,0.003]
[1693489577191,1.33382145,27211.0,27210.0,0.003]
[1693489577326,1.32896145,27211.0,27210.0,0.003]
[1693489577527,1.13780145,27211.0,27210.0,0.003]
[1693489577732,1.10852145,27211.0,27210.0,0.003]
[1693489577946,1.09832145,27211.0,27210.0,0.003]
[1693489578147,1.09112145,27211.0,27210.0,0.003]
[1693489578355,1.06324145,27211.0,27210.0,0.003]
[1693489578575,1.06228145,27211.0,27210.0,0.003]
[1693489578966,1.06348145,27211.0,27210.0,0.003]
[1693489579183,1.05916145,27211.0,27210.0,0.003]
[1693489579395,0.2711606,27211.0,27210.0,0.003]
[1693489579605,0.2456006,27211.0,27210.0,0.003]
[1693489579798,0.2567006,27211.0,27210.0,0.003]
[1693489580037,0.2382206,27211.0,27210.0,0.003]
[1693489580231,0.2449406,27211.0,27210.0,0.003]
[1693489580472,0.2457806,27211.0,27210.0,0.003]
[1693489580676,0.2558006,27211.0,27210.0,0.003]
[1693489580826,0.2711606,27211.0,27210.0,0.003]
[1693489581039,0.2805206,27211.0,27210.0,0.003]
[1693489581254,0.2772206,27211.0,27210.0,0.003]
[1693489581450,0.2732006,27211.0,27210.0,0.003]
[1693489581650,0.2671406,27211.0,27210.0,0.003]
[1693489581876,0.3575606,27211.0,27210.0,0.003]
[1693489582208,0.4847606,27211.0,27210.0,0.003]
[1693489582450,0.4858406,27211.0,27210.0,0.003]
[1693489582652,0.4876406,27211.0,27210.0,0.003]
[1693489582867,0.3645806,27211.0,27210.0,0.003]
[1693489583140,0.3657806,27211.0,27210.0,0.003]
[1693489583380,0.3651206,27211.0,27210.0,0.003]
[1693489583585,0.3654206,27211.0,27210.0,0.003]
[1693489583786,0.4865606,27211.0,27210.0,0.003]
[1693489584006,0.4858406,27211.0,27210.0,0.003]
[1693489584160,0.4851206,27211.0,27210.0,0.003]
[1693489584386,0.4850006,27211.0,27210.0,0.003]
[1693489584586,0.3605606,27211.0,27210.0,0.003]
[1693489584791,0.44874011,27211.0,27210.0,0.003]
[1693489585023,0.58766011,27211.0,27210.0,0.003]
[1693489585225,1.28335001,27211.0,27210.0,0.003]
[1693489585435,1.32468284,27211.0,27210.0,0.003]
[1693489585637,1.32384284,27211.0,27210.0,0.003]
[1693489585856,1.32804284,27211.0,27210.0,0.003]
[1693489586022,1.32228284,27211.0,27210.0,0.003]
[1693489586220,1.49723696,27211.0,27210.0,0.003]
[1693489586422,1.32552284,27211.0,27210.0,0.003]
[1693489586630,1.32576284,27211.0,27210.0,0.003]
[1693489586830,1.32504284,27211.0,27210.0,0.003]
[1693489586986,1.50914464,27211.0,27210.0,0.003]
[1693489587187,1.51394464,27211.0,27210.0,0.003]
[1693489587390,1.75916284,27211.0,27210.0,0.003]
[1693489587612,1.93688284,27211.0,27210.0,0.003]
[1693489587839,1.93670284,27211.0,27210.0,0.003]
[1693489588038,1.75520284,27211.0,27210.0,0.003]
[1693489588245,1.77176284,27211.0,27210.0,0.003]
[1693489588448,1.97540284,27211.0,27210.0,0.003]
[1693489588688,1.97576284,27211.0,27210.0,0.003]
[1693489588891,1.55048145,27211.0,27210.0,0.003]
[1693489589108,1.55000145,27211.0,27210.0,0.003]
[1693489589326,1.76888145,27211.0,27210.0,0.003]
[1693489589535,1.77284145,27211.0,27210.0,0.003]
[1693489589734,1.77266145,27211.0,27210.0,0.003]
[1693489589999,1.77248145,27211.0,27210.0,0.003]
[1693489590166,1.78256145,27211.0,27210.0,0.003]
[1693489590567,1.98495216,27211.0,27210.0,0.003]
[1693489590769,0.4466,27207.0,27198.0,0.26877043]
[1693489590991,0.0759,27200.0,27197.0,0.08797043]
[1693489591205,0.08563188,27199.0,27197.0,0.08797043]
[1693489591421,0.21764244,27199.0,27197.0,0.08797043]
[1693489591626,0.0858,27198.0,27197.0,0.08797043]
[1693489591831,0.08544,27198.0,27197.0,0.08797043]
[1693489592034,0.09036,27198.0,27196.0,0.21992607]
[1693489592247,0.19861188,27198.0,27196.0,0.21992607]
[1693489592468,0.16153188,27197.0,27195.0,0.08797043]
[1693489592672,0.0759,27196.0,27193.0,0.08797043]
[1693489592880,0.08563188,27195.0,27192.0,0.08797043]
[1693489593081,0.77763273,27195.0,27191.0,0.65469732]
[1693489593287,0.28488,27194.0,27190.0,0.21992607]
[1693489593493,0.0759,27191.0,27190.0,0.08797043]
[1693489593923,0.18816,27191.0,27190.0,0.08797043]
[1693489594126,0.18816,27191.0,27189.0,0.08797043]
[1693489594127,0.18966,27191.0,27189.0,0.08797043]
[1693489594335,0.18966,27191.0,27188.0,0.08797043]
[1693489594336,0.55734085,27191.0,27188.0,0.08797043]
[1693489594543,0.55734085,27191.0,27190.0,0.037]
[1693489594749,0.56208085,27191.0,27190.0,0.037]
[1693489594955,0.44358085,27191.0,27190.0,0.037]
[1693489595798,0.52830085,27191.0,27190.0,0.037]
[1693489596019,0.77138085,27191.0,27190.0,0.037]
[1693489596240,0.76922085,27191.0,27186.0,0.21992607]
[1693489596447,0.76922085,27191.0,27190.0,0.037]
[1693489596448,0.63326,27191.0,27190.0,0.037]
[1693489596658,0.3624,27191.0,27190.0,0.004]
[1693489597072,0.6894,27191.0,27190.0,0.004]
[1693489597277,0.6894,27191.0,27185.0,0.08797043]
[1693489597278,0.69324,27191.0,27185.0,0.08797043]
[1693489597535,0.0759,27187.0,27186.0,0.003]
[1693489598116,0.18474,27187.0,27186.0,0.003]
[1693489598328,0.18678,27187.0,27186.0,0.003]
[1693489598536,0.18804,27187.0,27186.0,0.003]
[1693489598735,0.18888,27187.0,27186.0,0.003]
[1693489599144,0.18834,27187.0,27186.0,0.003]
[1693489599355,0.1992,27187.0,27184.0,0.08797043]
[1693489599578,0.18948,27187.0,27184.0,0.12755711]
[1693489599781,0.19038,27187.0,27184.0,0.12755711]
[1693489599988,0.10668,27186.0,27184.0,0.12755711]
[1693489600234,0.1068,27186.0,27184.0,0.03958668]
[1693489600385,0.10692,27186.0,27184.0,0.03958668]
[1693489600591,0.10674,27186.0,27184.0,0.03958668]
[1693489600794,0.44358085,27185.0,27184.0,0.018]
[1693489601195,0.73890085,27185.0,27180.0,0.24093407]
[1693489601411,0.0759,27182.0,27180.0,0.24093407]
[1693489601690,0.0759,27182.0,27180.0,0.10897843]
[1693489601895,0.08562,27181.0,27180.0,0.10897843]
[1693489602104,0.01915132,27181.0,27180.0,0.43276769]
[1693489602319,0.08592,27181.0,27180.0,0.43276769]
[1693489602524,0.0912,27181.0,27180.0,0.43276769]
[1693489602732,0.09132,27181.0,27180.0,0.34479726]
[1693489602937,0.0915,27181.0,27180.0,0.43276769]
[1693489603150,0.11926635,27181.0,27180.0,0.43276769]
[1693489603364,0.11932635,27181.0,27180.0,0.43276769]
[1693489603573,0.21382635,27181.0,27180.0,0.021008]
[1693489603783,0.21292635,27181.0,27180.0,0.058008]
[1693489603989,0.21556635,27181.0,27180.0,0.095008]
[1693489604196,0.21598635,27181.0,27180.0,0.058008]
[1693489604404,0.21514635,27181.0,27180.0,0.021008]
[1693489604617,0.22198635,27181.0,27180.0,0.021008]
[1693489604823,0.23028635,27181.0,27180.0,0.095008]
[1693489605000,0.22734635,27181.0,27180.0,0.095008]
[1693489605229,0.22258635,27181.0,27180.0,0.058008]
[1693489605428,0.21952635,27181.0,27180.0,0.058008]
[1693489605606,0.22122635,27181.0,27180.0,0.095008]
[1693489605820,0.22146635,27181.0,27180.0,0.095008]
[1693489606018,0.20742635,27181.0,27180.0,0.095008]
[1693489606225,0.20736635,27181.0,27180.0,0.095008]
[1693489606439,0.20886635,27181.0,27180.0,0.095008]
[1693489606651,0.20700635,27181.0,27180.0,0.058008]
[1693489606854,0.21366635,27181.0,27180.0,0.058008]
[1693489607064,0.6082472,27181.0,27180.0,0.095008]
[1693489607271,0.8093672,27181.0,27180.0,0.095008]
[1693489607480,1.5560672,27181.0,27180.0,0.095008]
[1693489607690,1.4871072,27181.0,27180.0,0.095008]
[1693489607898,1.6057272,27181.0,27180.0,0.095008]
[1693489608107,1.57882992,27181.0,27180.0,0.058008]
[1693489608320,1.59410992,27181.0,27180.0,0.021008]
[1693489608525,1.58282992,27181.0,27180.0,0.021008]
[1693489608729,1.83640992,27181.0,27180.0,0.024008]
[1693489608939,1.84342992,27181.0,27180.0,0.024008]
[1693489609149,0.36768085,27181.0,27180.0,0.021008]
[1693489609358,0.3866,27180.0,27172.0,0.01]
[1693489609575,0.0759,27173.0,27172.0,0.01]
[1693489609784,0.52921273,27173.0,27172.0,0.01]
[1693489610206,0.0759,27173.0,27172.0,0.3036983]
[1693489610415,0.2358,27175.0,27172.0,0.3036983]
[1693489610622,0.36768085,27174.0,27172.0,0.3036983]
[1693489610822,0.3117,27175.0,27172.0,0.3036983]
[1693489610823,0.67938085,27175.0,27172.0,0.34406813]
[1693489611036,0.67938085,27175.0,27172.0,0.01]
[1693489611237,0.0759,27173.0,27172.0,0.03]
[1693489611445,0.0899,27173.0,27172.0,0.03]
[1693489611652,0.0829,27173.0,27172.0,0.29269475]
[1693489611856,0.0829,27173.0,27172.0,0.32996423]
[1693489612060,0.0759,27173.0,27172.0,0.33296423]
[1693489612265,0.0759,27173.0,27172.0,0.29569475]
[1693489612472,0.0759,27173.0,27172.0,0.29269475]
[1693489612729,0.0759,27173.0,27159.0,0.2185012]
[1693489612730,0.04,27168.0,27159.0,0.2185012]
[1693489612932,0.04,27168.0,27152.0,0.43028384]
[1693489612933,0.17529,27160.0,27153.0,0.2185012]
[1693489613146,0.75428085,27154.0,27152.0,0.021008]
[1693489613409,0.08,27148.0,27142.0,0.00061677]
[1693489613674,0.08,27145.0,27142.0,0.00061677]
[1693489613938,0.02,27146.0,27139.0,0.21844737]
[1693489613939,0.08,27142.0,27139.0,0.21844737]
[1693489614200,0.84761274,27144.0,27136.0,0.02]
[1693489614467,0.17529,27146.0,27142.0,0.02]
[1693489614468,0.08563188,27143.0,27142.0,0.02]
[1693489614725,0.09786,27150.0,27147.0,0.02]
[1693489614726,0.2436,27150.0,27147.0,0.02]
[1693489614981,0.003,27148.0,27147.0,0.02]
[1693489615225,0.44358085,27150.0,27147.0,0.02]
[1693489615430,0.0759,27148.0,27147.0,0.02]
[1693489615642,0.037,27144.0,27139.0,0.023]
[1693489615870,0.83991273,27143.0,27141.0,0.02]
[1693489616079,0.0759,27142.0,27141.0,0.02]
[1693489616937,0.09815242,27142.0,27141.0,0.02]
[1693489617348,0.38993327,27142.0,27141.0,0.02]
[1693489617557,0.4675866,27142.0,27141.0,0.02]
[1693489617772,0.38993327,27142.0,27141.0,0.02]
[1693489618221,0.91416515,27142.0,27130.0,0.07104]
[1693489618430,0.91416515,27142.0,27132.0,0.02]
[1693489618431,0.1015,27136.0,27132.0,0.02]
[1693489618690,0.1015,27133.0,27132.0,0.02]
[1693489618909,0.45331273,27133.0,27132.0,0.02]
[1693489619147,0.08563188,27135.0,27133.0,0.02]
[1693489619406,0.08563188,27135.0,27131.0,0.04]
[1693489619407,0.1015,27134.0,27131.0,0.02]
[1693489619648,0.46918085,27134.0,27132.0,0.003]
[1693489619908,0.137,27136.0,27135.0,0.02]
[1693489620113,0.037,27136.0,27135.0,0.20707234]
[1693489620382,0.037,27136.0,27135.0,0.06]
[1693489620604,0.037,27136.0,27135.0,0.20707234]
[1693489620806,0.037,27136.0,27135.0,0.20285723]
[1693489621111,0.2399,27145.0,27141.0,0.02]
[1693489621319,0.1015,27143.0,27135.0,0.37884067]
[1693489621528,0.1015,27137.0,27135.0,0.44607831]
[1693489621730,0.36768085,27136.0,27135.0,0.29700597]
[1693489622145,0.36768085,27136.0,27135.0,0.045]
[1693489622146,0.42516212,27136.0,27135.0,0.045]
[1693489622361,0.81176212,27136.0,27135.0,0.025]
[1693489622569,0.82976212,27136.0,27122.0,0.10398608]
[1693489622782,0.1523,27133.0,27131.0,0.02]
[1693489622981,0.42157085,27132.0,27131.0,0.02]
[1693489623195,0.91380273,27132.0,27128.0,0.02]
[1693489623407,0.3866,27130.0,27128.0,0.02]
[1693489623613,0.08563188,27131.0,27126.0,0.02]
[1693489623614,1.23281273,27129.0,27126.0,0.02]
[1693489623820,1.23281273,27129.0,27125.0,0.02]
[1693489623821,0.3866,27126.0,27125.0,0.02]
[1693489624032,0.85991273,27126.0,27125.0,0.02]
[1693489624236,0.86493894,27126.0,27125.0,0.02]
[1693489624446,0.77428085,27126.0,27125.0,0.02]
[1693489624656,0.07152,27131.0,27122.0,0.06]
[1693489624864,0.32983188,27134.0,27132.0,0.12583545]
[1693489625068,0.06708,27133.0,27128.0,0.02]
[1693489625274,0.06,27131.0,27128.0,0.16707234]
[1693489625477,0.36768085,27130.0,27128.0,0.02]
[1693489625684,0.36768085,27130.0,27129.0,0.26931058]
[1693489626099,0.38768085,27130.0,27129.0,0.26931058]
[1693489626520,0.38768085,27130.0,27128.0,0.02]
[1693489626730,0.77428085,27130.0,27129.0,0.30203016]
[1693489626937,0.77428085,27130.0,27128.0,0.02]
[1693489627145,0.02,27129.0,27128.0,0.30558934]
[1693489627351,0.77428085,27129.0,27128.0,0.24536712]
[1693489627554,0.77428085,27129.0,27128.0,0.24836712]
[1693489627760,0.77428085,27129.0,27128.0,0.32996077]
[1693489627961,0.77428085,27129.0,27128.0,0.32696077]
[1693489628202,0.77428085,27129.0,27128.0,0.02]
[1693489628623,0.77428085,27129.0,27128.0,0.003]
[1693489628833,0.92658085,27129.0,27128.0,0.003]
[1693489629033,0.92658085,27129.0,27125.0,0.02]
[1693489629240,0.3866,27127.0,27125.0,0.02]
[1693489629448,0.38768085,27126.0,27125.0,0.02]
[1693489630084,0.92658085,27126.0,27124.0,0.02]
[1693489630301,0.3866,27124.0,27121.0,0.02]
[1693489630514,0.5389,27122.0,27121.0,0.02]
[1693489630736,1.135494,27122.0,27121.0,0.02]
[1693489630954,1.04986212,27122.0,27121.0,0.02]
[1693489631373,1.04986212,27122.0,27107.0,0.53280038]
[1693489631374,0.6072,27121.0,27107.0,0.53280038]
[1693489631592,0.42768085,27114.0,27107.0,0.25489791]
[1693489631807,0.1523,27108.0,27107.0,0.23489791]
[1693489632032,0.60561273,27108.0,27107.0,0.23489791]
[1693489632258,0.59680269,27114.0,27107.0,0.23489791]
[1693489632259,0.1523,27110.0,27109.0,0.04]
[1693489632466,0.36768085,27115.0,27111.0,0.02]
[1693489632685,0.36768085,27118.0,27117.0,0.02]
[1693489632906,0.02,27122.0,27120.0,0.01]
[1693489632907,0.036,27121.0,27120.0,0.01]
[1693489633142,0.40368085,27121.0,27120.0,0.01]
[1693489633356,0.06,27107.0,27106.0,0.03680409]
[1693489633565,0.02,27105.0,27103.0,0.02]
[1693489634521,0.02,27105.0,27103.0,0.0199334]
[1693489634793,0.02,27105.0,27103.0,0.2830217]
[1693489635034,0.02,27105.0,27104.0,0.08524183]
[1693489635320,0.36768085,27105.0,27104.0,0.29201207]
[1693489635586,0.017,27105.0,27104.0,0.31194547]
[1693489635824,0.04,27106.0,27104.0,0.0199334]
[1693489636030,0.04,27110.0,27108.0,0.0199334]
[1693489636246,0.40768085,27110.0,27108.0,0.0199334]
[1693489636468,0.36768085,27109.0,27108.0,0.0199334]
[1693489636902,0.04,27110.0,27109.0,0.30375365]
[1693489637105,0.40768085,27110.0,27109.0,0.29145564]
[1693489637321,0.40768085,27110.0,27109.0,0.25552463]
[1693489637538,0.04,27113.0,27111.0,0.0199334]
[1693489637754,0.40768085,27113.0,27111.0,0.08137386]
[1693489637973,0.04,27113.0,27111.0,0.0199334]
[1693489638149,0.147657,27115.0,27114.0,0.0199334]
[1693489638413,0.27570503,27124.0,27116.0,0.0199334]
[1693489638414,0.04,27118.0,27116.0,0.0199334]
[1693489638625,0.04,27121.0,27119.0,0.0199334]
[1693489638848,0.04,27123.0,27120.0,0.06144046]
[1693489639058,0.04,27123.0,27121.0,0.0199334]
[1693489639059,1.06299755,27122.0,27121.0,0.0199334]
[1693489639272,0.02,27123.0,27121.0,0.08137386]
[1693489639492,0.02,27125.0,27123.0,0.0199334]
[1693489639701,1.06297262,27124.0,27123.0,0.07637386]
[1693489640133,0.02,27127.0,27122.0,0.08]
[1693489640134,0.02,27127.0,27126.0,0.0149334]
[1693489640340,0.02,27127.0,27126.0,0.07637386]
[1693489640551,0.02,27127.0,27126.0,0.0149334]
[1693489640810,0.13146506,27131.0,27129.0,0.0149334]
[1693489640811,0.10639846,27131.0,27129.0,0.0149334]
[1693489641015,0.02,27132.0,27131.0,0.0149334]
[1693489641223,0.02,27134.0,27132.0,0.0149334]
[1693489641435,1.06262639,27133.0,27132.0,0.07637386]
[1693489641641,1.06262639,27133.0,27132.0,0.0149334]
[1693489641851,1.10941072,27133.0,27132.0,0.0149334]
[1693489642282,1.08941072,27133.0,27132.0,0.0149334]
[1693489642540,1.08941072,27133.0,27132.0,0.0349334]
[1693489643036,1.08941072,27133.0,27132.0,0.07442674]
[1693489643242,1.12541072,27133.0,27132.0,0.07542674]
[1693489643458,1.08941072,27133.0,27132.0,0.07442674]
[1693489643675,1.08941072,27133.0,27132.0,0.13442674]
[1693489643885,1.08941072,27133.0,27132.0,0.43442674]
[1693489644097,1.08941072,27133.0,27132.0,0.74376422]
[1693489644311,1.08941072,27133.0,27132.0,0.43442674]
[1693489644542,1.08941072,27133.0,27132.0,0.80210759]
[1693489644764,0.47503872,27133.0,27132.0,0.93864759]
[1693489644955,0.51103872,27133.0,27132.0,0.84210759]
[1693489645407,0.47503872,27133.0,27132.0,0.84210759]
[1693489645639,0.49403872,27133.0,27132.0,0.91624759]
[1693489645856,0.47803872,27133.0,27132.0,0.92704759]
[1693489646062,0.47803872,27133.0,27132.0,0.93760759]
[1693489646272,0.48103872,27133.0,27132.0,0.93634759]
[1693489646483,0.45425439,27133.0,27132.0,0.94096759]
[1693489646690,0.45425439,27133.0,27132.0,0.94600759]
[1693489646691,0.45125439,27133.0,27132.0,0.94600759]
[1693489646913,0.45125439,27133.0,27132.0,0.96376759]
[1693489646914,0.45425439,27133.0,27132.0,0.96376759]
[1693489647131,0.45425439,27133.0,27132.0,0.93160759]
[1693489647345,0.45125439,27133.0,27132.0,0.91798759]
[1693489647583,0.147503,27147.0,27146.0,0.0149334]